Cogmind - Beta 15 @@@ ROGUE MODE // 2025.09.12 @ 14:11:23 Player: Petvaria Result: Destroyed by CZ-LON(R) with Subdweller Laser Performance ------------- Evolutions (0) 0 Regions Visited (2) 400 Robots Destroyed (25) 125 Value Destroyed (748) 748 Prototype IDs (1) 20 Alien Tech Used (0) 0 Bonus (0) 0 TOTAL SCORE: 1293 Bonus ------- None Cogmind --------- Core Integrity 0/250 Matter 300/300 Energy 180/180 System Corruption 0% Temperature Cool (6) Movement Treading (160) Location -10/Subcaves Parts ------- > --- POWER (1) -------- Meta Core > --- PROPULSION (2+1) - Light Treads Spiked Treads > --- UTILITY (2+1) ---- Large Storage Unit > --- WEAPON (2+1) ----- Subdweller Laser (+) Subdweller Laser Battle Rifle > --- INVENTORY (15) --- Ion Engine Subdweller Power Source Light Treads Aluminum Leg Aluminum Leg Wheel Compact Wheel Makeshift Hacking Suite Light Assault Rifle Subdweller Machine Gun Subdweller Machine Gun Subdweller Machine Gun Subdweller Machine Gun Battle Cannon Subdweller Shrapnel Launcher Peak State ------------ > --- POWER ------------ Meta Core > --- PROPULSION ------- Light Treads Light Treads > --- UTILITY ---------- Large Storage Unit Light Armor Plating > --- WEAPON ----------- Subdweller Laser Subdweller Laser Battle Cannon > --- INVENTORY -------- Ion Engine Subdweller Power Source Light Treads Spiked Treads Aluminum Leg Aluminum Leg Wheel Compact Wheel Light Assault Rifle Battle Rifle Subdweller Machine Gun Subdweller Machine Gun Subdweller Machine Gun Subdweller Shrapnel Launcher [Rating: 25] Favorites ----------- Power Meta Core Engine Ion Engine Power Core Meta Core Propulsion Light Treads Treads Light Treads Utility Large Storage Unit Storage Large Storage Unit Protection Light Armor Plating Weapon Subdweller Laser Energy Gun Subdweller Laser Ballistic Gun Subdweller Machine Gun Ballistic Cannon Battle Cannon Launcher Subdweller Shrapnel Launcher Build | -11 -10 -10 ------- Run | Yrd Mat Sub Slots Evolved . | . . . Power . | . . . Propulsion . | . . . Utility . | . . . Weapon . | . . . Parts Attached 22 | 6 2 14 Power 3 | 1 . 2 Engine 2 | 1 . 1 Core 1 | . . 1 Reactor . | . . . Propulsion 5 | 2 . 3 Treads 5 | 2 . 3 Leg . | . . . Wheel . | . . . Hover . | . . . Flight . | . . . Utility 4 | 1 2 1 Device . | . . . Storage 2 | 1 1 . Processor . | . . . Hackware . | . . . Protection 2 | . 1 1 Artifact . | . . . Weapon 10 | 2 . 8 Energy Gun 4 | 2 . 2 Energy Cannon . | . . . Ballistic Gun 3 | . . 3 Ballistic Cannon 2 | . . 2 Launcher 1 | . . 1 Special Weapon . | . . . Impact Weapon . | . . . Slashing Weapon . | . . . Piercing Weapon . | . . . Special Melee Weapon . | . . . Unidentified Prototypes 1 | . . 1 Parts Lost 8 | . . 8 Power 1 | . . 1 Propulsion 1 | . . 1 Utility 2 | . . 2 Weapon 4 | . . 4 Highest Loss Streak 5 | . . 5 To Critical Strikes . | . . . Average Backups 11 | 2 7 11 Power 1 | . 1 1 Propulsion 5 | 1 5 5 Utility . | . . . Weapon 4 | . 1 4 Tool/Special . | . . . Unused Backups 10 | . . 10 Power 1 | . . 1 Propulsion 4 | . . 4 Utility 1 | . . 1 Weapon 4 | . . 4 Tool/Special . | . . . Average Slot Usage (%) 78 | . 93 76 Engine 5 | . 14 4 Core 5 | . . 5 Treads 23 | . 28 23 Storage 11 | . 14 11 Protection 2 | . 8 2 Energy Gun 19 | . 28 18 Ballistic Gun 1 | . . 2 Ballistic Cannon 4 | . . 4 Launcher 3 | . . 3 Peak Build Rating 25 | 6 7 25 Average Rating 15 | 4 6 17 On Entrance 4 | . 6 7 Naked Turns . | . . . Heaviest Build 42 | 14 32 42 Greatest Support 40 | 40 40 40 Greatest Overweight (x) 1 | . . 1 Average Overweight (x) . | . . . Largest Inventory Capacity 15 | 8 15 15 Average Capacity 14 | 7 13 15 Most Carried 15 | 6 9 15 Average Carried 11 | 2 7 11 Final Capacity 15 | 8 15 15 Final Carried 15 | 6 8 15 Class Distribution -------------------- 64% | Mutant 34% | Gunner Dominant Class ---------------- Mutant | -10/Materials Mutant | -10/Subcaves Resources | -11 -10 -10 ----------- Run | Yrd Mat Sub Matter Collected 756 | 229 51 476 Remotely . | . . . Salvage Created 744 | . 130 614 Parts 42 | . 5 37 Haulers Intercepted . | . . . Recyclers Shooed . | . . . Parts Field Recycled . | . . . Retrieved Matter . | . . . Parts Self-Destructed 15 | . . 15 Prevented . | . . . Kills | -11 -10 -10 ------- Run | Yrd Mat Sub Combat Hostiles Destroyed 25 | . 5 20 Guns 20 | . 4 16 Cannons 3 | . . 3 AOE 1 | . . 1 Classes Destroyed 4 | . 2 2 Swarmer 8 | . 3 5 Grunt 5 | . 2 3 Sentry 1 | . . 1 Subdweller 11 | . . 11 Best Kill Streak 6 | . 3 6 Combat Bots Only 6 | . 3 6 Max Kills in Single Turn 2 | . 2 2 Gunslinging 1 | . 1 1 Exploded 1 | . . 1 Melee . | . . . Uniques/NPCs Destroyed . | . . . Combat | -11 -10 -10 -------- Run | Yrd Mat Sub Hostile Shots Fired 138 | . 20 118 Missed 32 | . 3 29 Hits 106 | . 17 89 Projectile 106 | . 17 89 AOE 1 | . . 1 Critical Strikes 1 | . . 1 Damage Taken 1787 | . 186 1601 Core 250 | . 29 221 Absorbed by Shields . | . . . Core Remaining (%) 100 | 100 . . Volleys Fired 87 | . 12 75 Largest 3 | . 2 3 Hottest 160 | . 100 160 Shots Fired 161 | . 24 137 Gun 117 | . 24 93 Cannon 36 | . . 36 Launcher 8 | . . 8 Special . | . . . Kinetic 57 | . . 57 Thermal 104 | . 24 80 Explosive . | . . . Electromagnetic . | . . . Robot Hit Streak 20 | . 12 20 Robot Miss Streak 4 | . 4 2 Penetration Max . | . . . Secondary Targets 5 | . 1 4 Max Gunslinging Chain 1 | . 1 1 Shots Hit Robots 111 | . 17 94 Core Hits 40 | . 7 33 Critical Kills . | . . . Critical Parts Destroyed . | . . . Critical Strikes 7 | . 4 3 Burn 6 | . 4 2 Destroy 1 | . . 1 Melee Attacks . | . . . Impact . | . . . Slashing . | . . . Piercing . | . . . Sneak Attacks . | . . . Combat Hostiles . | . . . Follow-up Attacks . | . . . Damage Inflicted 1864 | . 212 1652 Guns 1360 | . 212 1148 Cannons 353 | . . 353 Explosions 151 | . . 151 Melee . | . . . Ramming . | . . . Kinetic 627 | . . 627 Thermal 1237 | . 212 1025 Explosive . | . . . Electromagnetic . | . . . Impact . | . . . Slashing . | . . . Piercing . | . . . Highest Corruption . | . . . Average Corruption . | . . . Corruption Purged . | . . . Corruption Blocked . | . . . Overload Shots . | . . . Overflow Damage 3 | . . 3 Projectiles 3 | . . 3 Explosions . | . . . Melee . | . . . Knockbacks 9 | . . 9 Impact . | . . . Kinetic 8 | . . 8 Secondary 1 | . . 1 Self-Inflicted Damage 8 | . . 8 Shots 1 | . . 1 Rammed . | . . . Targets Rammed . | . . . Kicked . | . . . Crushed . | . . . Highest Temperature 210 | . 210 117 Average Temperature 64 | . 93 31 Received Heat Transfer 300 | . 57 243 Siege Activations . | . . . Martial Activations . | . . . Shielding Activations . | . . . Robots Disrupted . | . . . Combat Hostiles . | . . . Robots Corrupted . | . . . Combat Hostiles . | . . . Parts Fried . | . . . Impact Corruptions . | . . . Robots Melted 1 | . 1 . Combat Hostiles 1 | . 1 . Parts Melted 4 | . 3 1 Heat Transferred 2836 | . 925 1911 Parts Sabotaged . | . . . Parts Stolen . | . . . Parts Stripped . | . . . Power Chain Reactions . | . . . Alert | -11 -10 -10 ------- Run | Yrd Mat Sub Maximum Alert Level . | . . . Low Security (%) 100 | 100 100 . Level 1 . | . . . Level 2 . | . . . Level 3 . | . . . Level 4 . | . . . Level 5 . | . . . High Security . | . . . Max Security . | . . . Peak Influence 70 | . 70 . Initial . | . . . Average 18 | . 23 . Influence Increases 325 | . 120 205 Destroy 0b10 Robot/C 280 | . 100 180 Destroy Leader 30 | . 20 10 Lose Combat Pursuer 15 | . . 15 Influence Decreases 275 | . 116 159 Entered New Map 3 | . . 3 Time Decay 258 | . 116 142 Lost Part 14 | . . 14 Squads Dispatched 1 | . 1 . Investigation 1 | . 1 . Extermination . | . . . Reinforcement . | . . . Assault . | . . . Garrison . | . . . Intercept . | . . . Searches Triggered . | . . . Construction Impeded . | . . . Haulers Reinforced . | . . . Active Scanning Responses . | . . . Cargo Convoy Interrupts . | . . . Stealth | -11 -10 -10 --------- Run | Yrd Mat Sub Distress Signals 2 | . 2 . Communications Jammed . | . . . Distress Signals . | . . . Times Spotted 33 | . 11 22 Peak Tracking Total 4 | . 4 3 Tactical Retreats 1 | . . 1 Traps | -11 -10 -10 ------- Run | Yrd Mat Sub Traps Triggered 3 | . 1 2 Indirectly . | . . . Trap Hack Attempts . | . . . Triggered . | . . . Disarmed . | . . . Reprogrammed . | . . . Reused . | . . . Traps Extracted . | . . . Installed . | . . . Triggered . | . . . Machines | -11 -10 -10 ---------- Run | Yrd Mat Sub Machines Disabled . | . . . Max in Single Turn . | . . . Machines Repaired . | . . . Machines Dismantled . | . . . Machines Sabotaged . | . . . Overloaded Fab Kills . | . . . Hacking | -11 -10 -10 --------- Run | Yrd Mat Sub Machines Accessed . | . . . Terminals . | . . . Fabricators . | . . . Repair Stations . | . . . Recycling Units . | . . . Scanalyzers . | . . . Garrison Access . | . . . Total Hacks . | . . . Successful . | . . . Failed . | . . . Catastrophic . | . . . Database Lockouts . | . . . Manual . | . . . Terminals . | . . . Fabricators . | . . . Repair Stations . | . . . Recycling Units . | . . . Scanalyzers . | . . . Garrison Access . | . . . Terminal Hacks . | . . . Fabricator Hacks . | . . . Repair Station Hacks . | . . . Recycling Unit Hacks . | . . . Scanalyzer . | . . . Garrison Access Hacks . | . . . Unauthorized Hacks . | . . . Terminals . | . . . Fabricators . | . . . Repair Stations . | . . . Recycling Units . | . . . Scanalyzers . | . . . Garrison Access . | . . . Data Cores Recovered . | . . . Used . | . . . Hacking Detections . | . . . Full Trace Events . | . . . Feedback Events . | . . . Feedback Blocked . | . . . Robot Schematics Acquired . | . . . Robots Built . | . . . Authchips . | . . . Time . | . . . Total Robot Build Rating . | . . . Part Schematics Acquired . | . . . Parts Built . | . . . Authchips . | . . . Time . | . . . Total Part Build Rating . | . . . Parts Repaired . | . . . Time . | . . . Parts Recycled . | . . . Recycled Matter . | . . . Retrieved Matter . | . . . Retrieved Components . | . . . Parts Scanalyzed . | . . . Part Schematics Acquired . | . . . Parts Damaged . | . . . Bothacking | -11 -10 -10 ------------ Run | Yrd Mat Sub Used RIF Installer . | . . . Robots Hacked . | . . . Non-combat . | . . . Combat . | . . . Robot Hacks Applied . | . . . Relay Couplers Released . | . . . Fabnet Peak Effective % . | . . . Robots Rewired . | . . . Allies Hacked . | . . . Hacks Repelled . | . . . Allies | -11 -10 -10 -------- Run | Yrd Mat Sub Total Allies . | . . . Largest Group . | . . . Highest-Rated Group . | . . . Highest-Rated Ally . | . . . Total Orders . | . . . Ally Attacks . | . . . Total Damage . | . . . Kills . | . . . Allies Corrupted . | . . . Allies Melted . | . . . Intel | -11 -10 -10 ------- Run | Yrd Mat Sub Active Infowar (turns) . | . . . Robot Analysis Total . | . . . Derelict Logs Recovered 2 | . . 2 Drone Launches . | . . . Drone Recoveries . | . . . Exploration | -11 -10 -10 ------------- Run | Yrd Mat Sub Turns Passed 3552 | 132 429 2991 Spaces Moved 1637 | 76 153 1408 Core 6 | 6 . . Treads 1631 | 70 153 1408 Legs . | . . . Wheels . | . . . Hover . | . . . Flight . | . . . Fastest Speed 50 | 50 160 160 Average Speed 183 | 151 160 188 Slowest Speed 250 | 160 160 250 Overloaded Moves . | . . . Propulsion Burnouts . | . . . Robots Hopped . | . . . Potential Cave-ins . | . . . Cave-ins Triggered . | . . . Exploration Rate (%) 42 | 6 47 74 Regions Visited 2 Branch Regions 1 Pre-discovered Areas 3 | . . 3 Known Exits Taken . | . . . Unknown Exits Taken 2 | 1 1 . Scrap Searched 4 | . . 4 Spaces Dug . | . . . Terrain Destroyed 123 | . . 123 Melee . | . . . Projectile . | . . . AOE 123 | . . 123 Terrain Rammed . | . . . Walls Destroyed . | . . . Machines Disabled . | . . . Actions | -11 -10 -10 --------- Run | Yrd Mat Sub Total 2019 | 93 313 1613 Wait 242 | . 143 99 Move 1635 | 75 152 1408 Hop . | . . . Pick Up 31 | 12 3 16 Fast Attach 1 | . 1 . Attach 16 | 6 1 9 Detach . | . . . Swap 5 | . . 5 Drop 2 | . 1 1 Fire 87 | . 12 75 Melee . | . . . Ram . | . . . Kick . | . . . Crush . | . . . Escape Stasis . | . . . Rewire . | . . . Trap . | . . . Miscellaneous . | . . . Route ------- -11/Scrapyard -10/Materials (discovered 2 exits: [*Min] / [*Sub]) -10/Subcaves (discovered 2 exits: [*Mat] / [*Rec]) History --------- Turn | Location | Event 5 | -11/Scrapyard | Discovered new exit (range 16) 133 | -11/Scrapyard | Entered Materials 226 | -10/Materials | Discovered new exit (range 12) 330 | -10/Materials | Build established: Mutant 543 | -10/Materials | Discovered new exit (range 6) 562 | -10/Materials | Entered Subcaves 563 | -10/Subcaves | Approached by a straggling Scientist 571 | -10/Subcaves | Learned location of Zion (-6) 571 | -10/Subcaves | Met a Zionite searching for "candidates" 641 | -10/Subcaves | A swath of the cavern ceiling suddenly collapsed 986 | -10/Subcaves | Core integrity fell below 50% 1018 | -10/Subcaves | Lost 5 parts (1p1n1u2w) 1158 | -10/Subcaves | Shifting Twisted Machinery released Battle Cannon 1159 | -10/Subcaves | Shifting Twisted Machinery released Sub. Laser 1699 | -10/Subcaves | Discovered new exit (range 3) 1759 | -10/Subcaves | A Subdweller sparked back to life 1759 | -10/Subcaves | A Subdweller sparked back to life 1759 | -10/Subcaves | A Subdweller sparked back to life 1824 | -10/Subcaves | Found Prototype Power Core 1825 | -10/Subcaves | Identified Meta Core 1826 | -10/Subcaves | Attached Meta Core, gained temporary slots: Propulsion, Utility, Weapon 2082 | -10/Subcaves | Core integrity fell below 20% 2157 | -10/Subcaves | Learned location of Storage (-8) 2423 | -10/Subcaves | Build established: Gunner 3440 | -10/Subcaves | Discovered new exit (range 9) 3513 | -10/Subcaves | Build established: Mutant 3553 | -10/Subcaves | Destroyed by CZ-LON(R) with Subdweller Laser Last Messages --------------- Searching scrap... Found Battle Cannon. Found Sub. Machine Gun. Found 60 Matter. Acquired Mak. Hacking Suite. EXIT=FOUND Subatomizers dissect the Flight Unit. S-10 Pest destroyed. Switching to secondary target: S-10 Pest. S-10 Pest destroyed. Lgt. Ion Engine fries itself beyond repair. OX-WIG(R) destroyed. Acquired 22 matter. Subatomizers dissect the Sub. Laser. Searching scrap... Found Sub. Beam Cannon. Found 33 Matter. Triggered Piercing Trap. Spikes shoot up from the floor. Critical hit (Impale). Map ----- +----------------------------------------------------+ | | | | | | | | | | | | | | | | | | | ?????????????????????????????????????????????????? | | ?????????????????????????????????????????????????? | | ?????????????????????????????????????????????????? | | ?????????????????????????????????????????????????? | | ?????????????????????????????????????????????????? | | ?????????????????????????????????????????????????? | | ?????????????????########????????????????????????? | | ????????????????##$ """ #????????????????????????? | | ????????????????? "###??????????????????????? | | ?????????????????? # ??????????????????????? | | ?????????????????? # #?# ??????????????????????? | | ??????????????????? $#?# ####??????????????????? | | ?????????????????### #### <##?????????????????? | | ????????????????##$% #?????????????????? | | ????????????????#" ] #####R #?????????????????? | | ????????????????#< # #???????????#??????? | | ????????????????## @## #???????? #?????? | | ??????????????#####< ## ####????? #??????? | | ??????????##?## #######< <###???# #??????? | | ####??????# ## ### !%& < ## #??????? | | ###?????# !=[ #??????? | | #????## ######### #???????????? | | ## ####### # #????? ##???????????? | | ## "# "### # ##???? # #????????????? | | ## " # ## #??? #???????????? | | ### &% ## #??? #???????????? | | #" %& ## ##??### # #???????????? | | & #### #???" " "## ??????????? | | #?## ####"""" #? ? ?????????? | | # % "#### #" #?? # ? ????????? | | ## "#?# * #???#?#?????????? | | ?# "#?#### " #???????????????? | | ?## ??## ## "# #???????????????? | | ??# " "# ##??####? ###???????????????? | | ??# ##### ### #????????? ???????????????? | | ??###???####?? #????????? < """ ?????????????? | | ??????????????? ????????? "" ?????????????? | | ??????????????? ???????? "" ?????????????? | | ???????????????? ##???????? ""??????????????? | | ???????????????? #?????????? = ""??????????????? | | ????????????????? ??????????? "???????????????? | +----------------------------------------------------+ Best States ------------- Heat Dissipation 25 Energy Generation 17 Energy Capacity 250 Matter Stores 300 Matter Capacity 300 Sight Range 16 Terrain Scan Density 10 Armor Coverage 150 Evasion (%) 40 Recoil Reduction 2 Item Schematics ----------------- None Robot Schematics ------------------ None Fabricated ------------ Nothing Repaired ---------- Nothing Alien Tech Used ----------------- None Achievements -------------- None Challenges ------------ None Game ------ Seed TargetingDefenseStick Manual? 0 Play Time 00:15:40 Cumulative 196.9 hours Start 2025.09.12 @ 13:26:23 End 2025.09.12 @ 14:11:23 Sessions 1 Manual Loads 0 Difficulty Rogue Special Mode None Game No. 166 Rogue 166 Adventurer 0 Explorer 0 Win Type - Total 10 Types 4/0/2/2/1/0/0/0/0/1 Lore% 89 Gallery% 83 Achievement% 66 Wizard Run 0 Options --------- Layout 1 ASCII 0 Keyboard 0 Movement Numpad Keybinds 0 Fullscreen 1 Font 24/Proggy Map View 50x35 Zoom Use 0% Tactical HUD 0 Map Filters NONE Filters NONE Steam 1 RUN: d375a652-1356-46ba-96b2-2049648ba8ec